lending/lending_fUSD_20240703
["ID","MTS","AMOUNT","RATE_DAILY","PERIOD"]
[330984702,1719985837015,-626.78,0.00021917,4]
[330984703,1719985837025,-626.78,0.00021917,4]
[330984704,1719985837034,-626.78,0.00021917,4]
[330984705,1719985837043,-500.0,0.00021917,4]
[330984706,1719985837052,-626.78,0.00021917,4]
[330984707,1719985837061,-500.0,0.00021917,4]
[330984708,1719985837070,-500.0,0.00021917,4]
[330984709,1719985837079,-500.0,0.00021917,4]
[330984710,1719985837090,-504.5586789,0.00021917,4]
[330984711,1719985837104,-508.55012471,0.00021917,4]
[330984712,1719985837113,-500.0,0.00021917,4]
[330984713,1719985837123,-573.09,0.00021917,4]
[330984714,1719985837133,-573.09,0.00021917,4]
[330984715,1719985837142,-504.60527452,0.00021917,4]
[330984716,1719985837151,-500.0,0.00021917,4]
[330984717,1719985837161,-573.09,0.00021917,4]
[330984718,1719985837172,-573.09,0.00021917,4]
[330984719,1719985837182,-507.69817141,0.00021917,4]
[330984720,1719985837191,-500.0,0.00021917,4]
[330984721,1719985837201,-500.0,0.00021917,4]
[330984722,1719985837210,-500.0,0.00021917,4]
[330984723,1719985837219,-500.0,0.00021917,4]
[330984724,1719985837228,-500.0,0.00021917,4]
[330984725,1719985837238,-745.8,0.00021918,2]
[330984726,1719985837247,-150.0,0.00021918,2]
[330984727,1719985837256,-590.25,0.00021918,2]
[330984728,1719985837266,-176.53,0.00021918,2]
[330984729,1719985837276,-164.120909,0.00021918,2]
[330984730,1719985837285,-500.0,0.00021921,2]
[330984731,1719985837294,-1000.0,0.00021922,2]
[330984732,1719985837303,-500.0,0.00021922,2]
[330984733,1719985837313,-200.0,0.00021922,2]
[330984734,1719985837322,-151.64330945,0.00021926,2]
[330984735,1719985837331,-723.86253283,0.00021929,2]
[330984736,1719985837340,-500.0,0.0002193,2]
[330984737,1719985837350,-500.0,0.00021938,2]
[330984738,1719985837360,-1637.83105942,0.00021957,3]
[330984739,1719985837370,-1276.03350758,0.0002196,2]
[330984740,1719985837379,-1489.39679986,0.0002196,2]
[330984741,1719985837389,-1089.81693901,0.0002196,3]
[330984751,1719985838147,-500.0,0.00021917,4]
[330984752,1719985838158,-471.11180087,0.00021917,4]
[330984755,1719985838382,-1544.59791416,0.00015399,2]
[330984756,1719985838393,-1012.74329507,0.00015399,2]
[330984757,1719985838412,-8124.22870691,0.00015399,2]
[330984758,1719985838422,-947.88727782,0.00015535,2]
[330984759,1719985838432,-156.57884423,0.00015579,2]
[330984760,1719985838441,-155.78810621,0.00015579,2]
[330984761,1719985838451,-155.5464279,0.00015579,2]
[330984762,1719985838460,-227.12084219,0.00017257,2]
[330984763,1719985838469,-269.475,0.00021474,2]
[330984764,1719985838479,-365.78699378,0.00021885,2]
[330984765,1719985838488,-28.88819913,0.00021917,4]
[330984766,1719985838497,-500.0,0.00021917,4]
[330984767,1719985838507,-500.0,0.00021917,4]
[330984768,1719985838516,-8005.3548971,0.0002196,3]
[330984769,1719985838526,-867.82451069,0.00021967,2]
[330984770,1719985838535,-327.27195084,0.00021976,2]
[330984771,1719985838545,-155.0,0.00021981,2]
[330984772,1719985838554,-57.06572426,0.00021985,2]
[330984773,1719985840284,-92.93427574,0.00021985,2]
[330984774,1719985840295,-3906.06572426,0.0002199,3]
[330984802,1719985842718,-574.42355092,0.0002199,3]
[330984805,1719985845830,-390.67842279,0.0002199,3]
[330984806,1719985845986,-819.14011474,0.0002199,3]
[330984807,1719985845997,-2696.3232551,0.0002199,3]
[330984810,1719985921253,-500.0,0.00012236,2]
[330984812,1719985995991,156.55685119,0.00012236,2]
[330984813,1719985996023,343.44314881,0.00012236,2]
[330984826,1719986295529,412.03889717,0.00011199,2]
[330984827,1719986295565,1052.00118125,0.00011199,2]
[330984828,1719986295601,1198.99866509,0.00011199,2]
[330984829,1719986295638,755.48204598,0.00011199,2]
[330984830,1719986295676,604.86186518,0.00011199,2]
[330984831,1719986295713,669.33966513,0.00011199,2]
[330984832,1719986295748,1198.99866509,0.00011199,2]
[330984833,1719986295781,1140.8460403,0.00011199,2]
[330984834,1719986295812,8400.77180616,0.00011199,2]
[330984836,1719986361197,1599.22819384,0.00011199,2]
[330984837,1719986361221,3188.58885217,0.00011199,2]
[330984838,1719986395903,6811.41114783,0.00011199,2]
[330984839,1719986395926,3716.16830261,0.00011199,2]
[330984840,1719986400390,-156.64,0.00018849,30]
[330984841,1719986400477,-556.0,0.000221,30]
[330984842,1719986400537,-150.0,0.0002226,120]
[330984843,1719986400585,-258.28,0.000224,31]
[330984844,1719986400639,-2066859.74686173,0.000225,120]
[330984845,1719986400695,-150.0,0.00022914,120]
[330984846,1719986400795,-1000.0,0.00023,120]
[330984847,1719986400841,-150.0,0.00023426,120]
[330984848,1719986400886,-150.0,0.00023869,120]
[330984849,1719986400929,-2383.11874616,0.00024,30]
[330984853,1719986493040,2904.10466485,0.00011199,2]
[330984855,1719986527145,5100.0,0.00022,32]
[330984856,1719986557224,5100.0,0.00022,33]
[330984858,1719986564451,5100.0,0.00022,34]
[330984859,1719986622225,5100.0,0.00022,34]
[330984860,1719986663933,1907.33688277,0.00011199,2]
[330984861,1719986684538,5100.0,0.00022,35]
[330984862,1719986714623,1458.553,0.00024657,30]
[330984866,1719986912773,483.73593988,0.00011199,2]
[330984878,1719986977424,2625.41920257,0.00024658,30]
[330984895,1719987032048,-155.0,0.00012302,2]
[330984896,1719987032058,-155.0,0.00012302,2]
[330984897,1719987032068,-29.85299,0.00013028,2]
[330984898,1719987032079,-130.42456314,0.00013028,2]
[330984899,1719987032089,-539.37164339,0.00013543,2]
[330984900,1719987032098,-857.92056726,0.00013574,2]
[330984901,1719987032108,-663.93472218,0.00013736,2]
[330984902,1719987032118,-160.27755312,0.0001374,2]
[330984903,1719987032128,-266.17183068,0.00013849,2]
[330984904,1719987032137,-150.99,0.00014142,2]
[330984905,1719987032147,-160.27755312,0.00014452,2]
[330984906,1719987032156,-213.51249059,0.00014702,2]
[330984907,1719987032168,-993.64750941,0.00014702,2]
[330984908,1719987032178,-458.51,0.00014734,2]
[330984909,1719987032188,-500.0,0.00014794,2]
[330984910,1719987032197,-500.0,0.00014794,2]
[330984911,1719987032206,-300.0,0.00014999,2]
[330984912,1719987032216,-300.0,0.00014999,2]
[330984913,1719987032225,-551.3793996,0.00015,2]
[330984914,1719987032236,-789.29286824,0.00015,2]
[330984915,1719987032248,-1502.92032109,0.00015,2]
[330984916,1719987032260,-2156.40741107,0.00015,2]
[330984917,1719987032270,-24704.08843697,0.00015029,2]
[330984918,1719987032282,-14096.91156303,0.00015029,2]
[330984919,1719987032291,-160.27755312,0.00015164,2]
[330984920,1719987032302,-841.83254525,0.00015335,2]
[330984921,1719987032311,-160.27755312,0.00015876,2]
[330984922,1719987032320,-526.43862927,0.00015999,2]
[330984923,1719987032330,-3782.61,0.00016116,2]
[330984924,1719987032339,-1078.1,0.00016291,2]
[330984925,1719987032350,-1000.0,0.00016323,2]
[330984926,1719987032359,-201.71,0.00016372,2]
[330984927,1719987032369,-477.49,0.00016415,2]
[330984928,1719987032379,-420.0,0.00016416,2]
[330984929,1719987032389,-500.0,0.00016438,2]
[330984930,1719987032398,-500.0,0.00016438,2]
[330984931,1719987032408,-200.0,0.00016447,2]
[330984932,1719987032417,-250.0,0.00016468,2]
[330984934,1719987032427,-183.77,0.00016583,2]
[330984936,1719987032436,-160.27755312,0.00016587,2]
[330984938,1719987032447,-155.06,0.00016612,2]
[330984940,1719987032460,-13271.715,0.00016638,2]
[330984942,1719987032469,-2221.13,0.00016804,2]
[330984944,1719987032479,-177.78,0.0001689,2]
[330984946,1719987032489,-458.51,0.00016998,2]
[330984948,1719987032499,-172.54,0.00017063,2]
[330984951,1719987032509,-172.54,0.0001711,2]
[330984952,1719987032518,-172.54,0.00017157,2]
[330984955,1719987032531,-172.54,0.00017204,2]
[330984956,1719987032540,-172.54,0.0001725,2]
[330984958,1719987032549,-500.0,0.0001726,2]
[330984960,1719987032558,-500.0,0.0001726,2]
[330984962,1719987032569,-172.54,0.00017297,2]
[330984964,1719987032579,-160.27755312,0.00017299,2]
[330984966,1719987032588,-29185.3467,0.000173,2]
[330984968,1719987032598,-172.54,0.00017344,2]
[330984971,1719987032607,-172.54,0.00017391,2]
[330984973,1719987032617,-172.54,0.00017438,2]
[330984975,1719987032627,-172.54,0.00017484,2]
[330984977,1719987032637,-172.54,0.00017531,2]
[330984979,1719987032647,-172.54,0.00017578,2]
[330984981,1719987032656,-172.54,0.00017625,2]
[330984983,1719987032666,-172.54,0.00017672,2]
[330984985,1719987032676,-172.54,0.00017718,2]
[330984987,1719987032686,-453.73,0.0001772,2]
[330984989,1719987032695,-172.54,0.00017765,2]
[330984991,1719987032705,-152.91,0.00017804,2]
[330984993,1719987032715,-3037.01242114,0.00017807,2]
[330984995,1719987032725,-500.0,0.00017808,2]
[330984997,1719987032734,-172.54,0.00017812,2]
[330984999,1719987032744,-172.54,0.00017859,2]
[330985001,1719987032754,-172.54,0.00017905,2]
[330985003,1719987032764,-172.54,0.00017952,2]
[330985005,1719987032773,-587.0,0.00017966,2]
[330985007,1719987032783,-3116.17339962,0.00017999,2]
[330985009,1719987032793,-160.27755312,0.00018011,2]
[330985011,1719987032802,-500.0,0.00018082,2]
[330985013,1719987032812,-399.6115436,0.00018082,2]
[330985014,1719987032821,-500.0,0.00018356,2]
[330985015,1719987032831,-500.0,0.00018356,2]
[330985016,1719987032841,-1000.0,0.00018363,2]
[330985017,1719987032850,-10483.9861,0.000186,2]
[330985018,1719987032860,-453.73,0.00018606,2]
[330985019,1719987032869,-173.38,0.00018685,2]
[330985020,1719987032879,-1473.30959639,0.00018717,2]
[330985021,1719987032889,-160.27755312,0.00018723,2]
[330985022,1719987032899,-512.9635591,0.00018864,2]
[330985023,1719987032909,-698.35410067,0.00018899,2]
[330985024,1719987032918,-227.12084219,0.00018899,2]
[330985025,1719987032928,-179.55862317,0.000189,2]
[330985026,1719987032937,-162.49117933,0.000189,2]
[330985027,1719987032947,-324.57225415,0.000189,2]
[330985028,1719987032957,-2307.42728149,0.000189,2]
[330985029,1719987032967,-150.50133856,0.000189,2]
[330985030,1719987032976,-220.36,0.00018904,2]
[330985031,1719987032986,-155.93987876,0.00018919,2]
[330985032,1719987032996,-295.87,0.0001899,7]
[330985033,1719987033005,-184.60793833,0.0001899,2]
[330985034,1719987033015,-184.60793833,0.0001899,2]
[330985035,1719987033026,-194.87,0.0001899,2]
[330985036,1719987033035,-194.87,0.0001899,2]
[330985037,1719987033044,-194.87,0.0001899,2]
[330985038,1719987033054,-194.87,0.0001899,2]
[330985039,1719987033063,-194.87,0.0001899,2]
[330985040,1719987033073,-194.87,0.0001899,2]
[330985041,1719987033083,-194.87,0.0001899,2]
[330985042,1719987033092,-194.87,0.0001899,2]
[330985043,1719987033102,-194.87,0.0001899,2]
[330985044,1719987033111,-194.87,0.0001899,2]
[330985045,1719987033121,-194.87,0.0001899,2]
[330985046,1719987033131,-194.87,0.0001899,2]
[330985047,1719987033140,-194.87,0.0001899,2]
[330985048,1719987033150,-194.87,0.0001899,2]
[330985049,1719987033159,-194.87,0.0001899,2]
[330985050,1719987033169,-194.87,0.0001899,2]
[330985051,1719987033178,-194.87,0.0001899,2]
[330985052,1719987033188,-194.87,0.0001899,2]
[330985053,1719987033197,-194.87,0.0001899,2]
[330985054,1719987033207,-194.87,0.0001899,2]
[330985055,1719987033217,-194.87,0.0001899,2]
[330985056,1719987033227,-194.87,0.0001899,2]
[330985057,1719987033236,-194.87,0.0001899,2]
[330985058,1719987033246,-194.87,0.0001899,2]
[330985059,1719987033256,-194.87,0.0001899,2]
[330985060,1719987033267,-194.87,0.0001899,2]
[330985061,1719987033276,-194.87,0.0001899,2]
[330985062,1719987033285,-194.87,0.0001899,2]
[330985063,1719987033294,-194.87,0.0001899,2]
[330985064,1719987033304,-194.87,0.0001899,2]
[330985065,1719987033313,-194.87,0.0001899,2]
[330985066,1719987033322,-194.87,0.0001899,2]
[330985067,1719987033332,-194.87,0.0001899,2]
[330985068,1719987033341,-194.87,0.0001899,2]
[330985069,1719987033350,-194.87,0.0001899,2]
[330985070,1719987033360,-194.87,0.0001899,2]
[330985071,1719987033369,-194.87,0.0001899,2]
[330985072,1719987033378,-194.87,0.0001899,2]
[330985073,1719987033387,-194.87,0.0001899,2]
[330985074,1719987033397,-194.87,0.0001899,2]
[330985075,1719987033406,-194.87,0.0001899,2]
[330985076,1719987033416,-194.87,0.0001899,2]
[330985077,1719987033427,-194.87,0.0001899,2]
[330985078,1719987033438,-194.87,0.0001899,2]
[330985079,1719987033453,-194.87,0.0001899,2]
[330985080,1719987033462,-194.87,0.0001899,2]
[330985081,1719987033472,-194.87,0.0001899,2]
[330985082,1719987033483,-194.87,0.0001899,2]
[330985083,1719987033493,-194.87,0.0001899,2]
[330985084,1719987033504,-194.87,0.0001899,2]
[330985085,1719987033514,-194.87,0.0001899,2]
[330985086,1719987033526,-194.87,0.0001899,2]
[330985087,1719987033539,-500.0,0.00018999,2]
[330985088,1719987033551,-500.0,0.00018999,2]
[330985089,1719987033561,-500.0,0.00018999,2]
[330985090,1719987033574,-268.17864901,0.00018999,2]
[330985091,1719987033584,-457.26290382,0.00018999,2]
[330985092,1719987033594,-500.0,0.00018999,2]
[330985093,1719987033604,-500.0,0.00018999,2]
[330985094,1719987033614,-500.0,0.00018999,2]
[330985095,1719987033624,-154.40043619,0.00018999,2]
[330985096,1719987033634,-500.0,0.00018999,2]
[330985097,1719987033643,-180.25712244,0.00018999,2]
[330985098,1719987033653,-466.58117749,0.00018999,2]
[330985099,1719987033662,-500.0,0.00018999,2]
[330985100,1719987033672,-500.0,0.00018999,2]
[330985101,1719987033681,-500.0,0.00018999,2]
[330985102,1719987033691,-500.0,0.00018999,2]
[330985103,1719987033701,-298.95761375,0.00018999,2]
[330985104,1719987033711,-500.0,0.00018999,2]
[330985105,1719987033721,-500.0,0.00018999,2]
[330985106,1719987033732,-252.18674516,0.00018999,2]
[330985107,1719987033966,-351.91053523,0.00018999,2]
[330985108,1719987033976,-500.0,0.00018999,2]
[330985109,1719987033986,-500.0,0.00018999,2]
[330985110,1719987033997,-500.0,0.00018999,2]
[330985111,1719987034007,-500.0,0.00018999,2]
[330985112,1719987034016,-500.0,0.00018999,2]
[330985113,1719987034026,-500.0,0.00018999,2]
[330985114,1719987034035,-203.97881125,0.00018999,2]
[330985115,1719987034045,-500.0,0.00018999,2]
[330985116,1719987034055,-500.0,0.00018999,2]
[330985117,1719987034065,-500.0,0.00018999,2]
[330985118,1719987034074,-500.0,0.00018999,2]
[330985119,1719987034084,-526.1508556,0.00018999,2]
[330985120,1719987034094,-500.0,0.00018999,2]
[330985121,1719987034104,-500.0,0.00018999,2]
[330985122,1719987034114,-500.0,0.00018999,2]
[330985123,1719987034124,-276.16702447,0.00018999,2]
[330985124,1719987034133,-500.0,0.00018999,2]
[330985125,1719987034143,-500.0,0.00018999,2]
[330985126,1719987034153,-500.0,0.00018999,2]
[330985127,1719987034162,-500.0,0.00018999,2]
[330985128,1719987034173,-500.0,0.00018999,2]
[330985129,1719987034184,-500.0,0.00018999,2]
[330985130,1719987034194,-500.0,0.00018999,2]
[330985131,1719987034206,-500.0,0.00018999,2]
[330985132,1719987034216,-500.0,0.00018999,2]
[330985133,1719987034228,-500.0,0.00018999,2]
[330985134,1719987034238,-500.0,0.00018999,2]
[330985135,1719987034248,-500.0,0.00018999,2]
[330985136,1719987034258,-500.0,0.00018999,2]
[330985137,1719987034268,-500.0,0.00018999,2]
[330985138,1719987034278,-500.0,0.00018999,2]
[330985139,1719987034287,-500.0,0.00018999,2]
[330985140,1719987034296,-500.0,0.00018999,2]
[330985141,1719987034307,-500.0,0.00018999,2]
[330985142,1719987034319,-500.0,0.00018999,2]
[330985143,1719987034329,-500.0,0.00018999,2]
[330985144,1719987034338,-9777.75856835,0.00019,2]
[330985145,1719987034352,-318.77020499,0.00019,2]
[330985146,1719987034367,-912.13911351,0.00019,2]
[330985147,1719987034388,-500.0,0.00016164,2]
[330985148,1719987034397,-193.3450353,0.00019,2]
[330985149,1719987034410,-259.37769393,0.00019,2]
[330985150,1719987034422,-3317.59,0.00019,2]
[330985151,1719987034434,-1509.96879952,0.00019,2]
[330985152,1719987034446,-9158.32958316,0.00019,2]
[330985153,1719987034463,-1536.45624291,0.00019,2]
[330985157,1719987037927,-155.0,0.00012273,2]
[330985159,1719987037937,-13000.43099431,0.00013574,2]
[330985163,1719987038102,-4474.43573524,0.00013574,2]
[330985164,1719987038178,-955.97027776,0.00013574,2]
[330985165,1719987038190,-1193.73851408,0.00013574,2]
[330985166,1719987038199,-153.496,0.00016505,2]
[330985167,1719987038209,-153.496,0.00017371,2]
[330985168,1719987038218,-500.0,0.00017808,2]
[330985169,1719987038228,-153.496,0.00018329,2]
[330985170,1719987038237,-2185.175,0.00018864,2]
[330985171,1719987038246,-597.09018342,0.000189,2]
[330985172,1719987038258,-1574.49741508,0.000189,2]
[330985173,1719987038267,-500.0,0.00018904,2]
[330985174,1719987038277,-500.0,0.00018904,2]
[330985175,1719987038286,-691.05902725,0.00019,2]
[330985176,1719987038298,-1857.14049247,0.00019,2]
[330985177,1719987038309,-451.57864314,0.00019,2]
[330985178,1719987038320,-527.99648139,0.00019,2]
[330985179,1719987038332,-1765.0,0.00019,2]
[330985180,1719987038412,-2658.89648734,0.00019,2]
[330985181,1719987038423,-853.08727691,0.00019,2]
[330985182,1719987038436,-3074.74985537,0.00019,2]
[330985183,1719987038448,-27632.41154075,0.00019,2]
[330985185,1719987040182,-300.0,0.00019,2]
[330985187,1719987040194,-541.90735526,0.00019,2]
[330985188,1719987040365,-641.55021211,0.00019,2]
[330985189,1719987040377,-373.92460241,0.00019,2]
[330985190,1719987040546,-755.0,0.00019,2]
[330985223,1719987043116,-2482.74284815,0.00019,2]
[330985268,1719987044645,-4228343.21993578,0.00019,2]
[330985269,1719987044655,-153.70159585,0.00019001,2]
[330985270,1719987044664,-166.66666668,0.00019009,2]
[330985271,1719987044673,-153.59218525,0.00019012,2]
[330985272,1719987044683,-153.70159585,0.00019034,2]
[330985273,1719987044693,-153.70159585,0.00019124,2]
[330985274,1719987044702,-153.61046686,0.00019135,2]
[330985275,1719987044712,-500.0,0.00019178,2]
[330985276,1719987044721,-250.0,0.00019178,2]
[330985277,1719987044731,-152.31815752,0.00019257,2]
[330985278,1719987044740,-458.51,0.00019262,2]
[330985279,1719987044750,-166.66666668,0.00019271,2]
[330985280,1719987044760,-155.62807894,0.00019291,2]
[330985281,1719987044769,-156.31250766,0.00019336,2]
[330985282,1719987044779,-3014.39730272,0.0001935,2]
[330985283,1719987044789,-153.496,0.0001939,2]
[330985284,1719987044798,-153.61046686,0.0001942,2]
[330985285,1719987044808,-500.0,0.00019452,2]
[330985286,1719987044817,-153.59218525,0.00019479,2]
[330985287,1719987044827,-453.73,0.00019492,2]
[330985288,1719987044836,-153.59218525,0.00019535,2]
[330985289,1719987044845,-166.50275554,0.0001958,2]
[330985290,1719987044855,-194.87,0.0001959,2]
[330985291,1719987044865,-153.61046686,0.00019596,2]
[330985292,1719987044874,-33337.0,0.000196,2]
[330985293,1719987044884,-823.0,0.00019663,2]
[330985294,1719987044892,-324.57225414,0.00019698,2]
[330985295,1719987044902,-10000.0,0.00019718,2]
[330985296,1719987044912,-246.34734534,0.00019725,2]
[330985297,1719987044921,-153.61046686,0.00019835,2]
[330985298,1719987044931,-153.61046686,0.00019869,2]
[330985299,1719987044940,-317.84,0.0001989,3]
[330985300,1719987044950,-153.70159585,0.00019906,2]
[330985301,1719987044961,-153.59218525,0.00019908,2]
[330985302,1719987044973,-153.61046686,0.00019912,2]
[330985303,1719987044982,-153.61046686,0.00019953,2]
[330985304,1719987044991,-156.04881459,0.00019998,2]
[330985305,1719987045001,-500.0,0.0002,2]
[330985306,1719987045011,-327.05681638,0.0002,2]
[330985307,1719987045021,-11483.0,0.0002,3]
[330985308,1719987045031,-1000.0,0.0002,2]
[330985309,1719987045040,-500.0,0.0002,2]
[330985310,1719987045049,-154.40831921,0.00020006,2]
[330985311,1719987045059,-151.0,0.00020037,2]
[330985312,1719987045069,-166.66666668,0.00020084,2]
[330985313,1719987045078,-154.40831921,0.00020087,2]
[330985314,1719987045088,-153.70159585,0.00020098,2]
[330985315,1719987045098,-168.577,0.00020164,2]
[330985316,1719987045109,-3671.0,0.000202,4]
[330985317,1719987045120,-153.61046686,0.0002021,2]
[330985318,1719987045130,-153.70159585,0.00020215,2]
[330985319,1719987045140,-154.77233767,0.00020224,2]
[330985320,1719987045150,-500.0,0.00020274,2]
[330985321,1719987045160,-153.70159585,0.00020275,2]
[330985322,1719987045169,-153.61046686,0.00020278,2]
[330985323,1719987045179,-453.73,0.00020378,2]
[330985324,1719987045187,-11483.0,0.000204,5]
[330985325,1719987045197,-1000.0,0.00020403,2]
[330985326,1719987045208,-154.40831921,0.00020419,2]
[330985327,1719987045219,-179.55862317,0.0002045,2]
[330985328,1719987045228,-324.57225414,0.00020496,2]
[330985329,1719987045238,-152.66358674,0.00020527,2]
[330985330,1719987045247,-500.0,0.00020548,2]
[330985331,1719987045256,-153.496,0.00020568,2]
[330985332,1719987045265,-153.70159585,0.00020616,2]
[330985333,1719987045275,-153.70159585,0.00020623,2]
[330985334,1719987045284,-150.0,0.00020683,2]
[330985335,1719987045293,-153.61046686,0.00020703,2]
[330985336,1719987045302,-153.59218525,0.00020754,2]
[330985337,1719987045312,-194.87,0.0002079,2]
[330985338,1719987045321,-194.87,0.0002079,2]
[330985339,1719987045330,-194.87,0.0002079,2]
[330985340,1719987045340,-194.87,0.0002079,2]
[330985341,1719987045349,-241975.369118,0.000208,3]
[330985342,1719987045359,-152.66358674,0.00020842,2]
[330985343,1719987045368,-153.59218525,0.00020896,2]
[330985344,1719987045377,-31118.7901289,0.000209,3]
[330985345,1719987045386,-171.2311072,0.000209,2]
[330985346,1719987045396,-153.61046686,0.00020922,2]
[330985347,1719987045406,-153.61046686,0.00020941,2]
[330985348,1719987045416,-152.0,0.00020948,3]
[330985349,1719987045425,-153.59218525,0.00020986,2]
[330985350,1719987045435,-225.25950071,0.00021,2]
[330985351,1719987045445,-203.233329,0.00021,2]
[330985352,1719987045460,-1250.0,0.00021,2]
[330985353,1719987045470,-152.47132132,0.00021061,2]
[330985354,1719987045479,-152.66358674,0.00021066,2]
[330985355,1719987045491,-153.70159585,0.00021081,2]
[330985356,1719987045500,-500.0,0.00021096,2]
[330985357,1719987045510,-152.67553181,0.00021096,2]
[330985358,1719987045520,-500.0,0.00021096,2]
[330985359,1719987045530,-175.397949,0.0002113,2]
[330985360,1719987045540,-188.99176,0.0002113,2]
[330985361,1719987045550,-2485.744847,0.0002113,2]
[330985362,1719987045559,-214.003362,0.0002113,2]
[330985363,1719987045570,-153.59218525,0.00021165,2]
[330985364,1719987045580,-1422.42,0.00021198,2]
[330985365,1719987045591,-189.898,0.00021198,2]
[330985366,1719987045601,-823.236,0.00021198,2]
[330985367,1719987045610,-505.066,0.00021198,2]
[330985368,1719987045620,-619.709,0.00021198,2]
[330985369,1719987045630,-250.0,0.00021231,2]
[330985370,1719987045640,-152.66358674,0.00021257,2]
[330985371,1719987045649,-453.73,0.00021264,2]
[330985372,1719987045661,-152.67553181,0.0002128,2]
[330985373,1719987045671,-324.57225414,0.00021294,2]
[330985374,1719987045680,-153.61046686,0.00021311,2]
[330985375,1719987045690,-152.47132132,0.00021319,2]
[330985376,1719987045699,-500.0,0.0002137,2]
[330985377,1719987045709,-2485.744847,0.00021394,2]
[330985378,1719987045719,-214.003362,0.00021394,2]
[330985379,1719987045729,-312.61376981,0.000214,2]
[330985380,1719987045739,-153.61046686,0.00021473,2]
[330985381,1719987045749,-1152.0,0.0002152,2]
[330985382,1719987045759,-458.51,0.00021526,2]
[330985384,1719987045770,-1250.0,0.000216,2]
[330985385,1719987045780,-328.32,0.00021644,2]
[330985387,1719987045789,-150.04,0.00021644,2]
[330985388,1719987045799,-500.0,0.00021644,2]
[330985389,1719987045809,-2485.744847,0.00021658,2]
[330985390,1719987045818,-214.003362,0.00021658,2]
[330985391,1719987045827,-188.99176,0.00021658,2]
[330985392,1719987045837,-151.72556293,0.00021754,2]
[330985393,1719987045847,-153.61046686,0.00021758,2]
[330985394,1719987045857,-350.0,0.00021779,2]
[330985395,1719987045867,-11186.0,0.000218,2]
[330985396,1719987045876,-153.61046686,0.00021827,2]
[330985397,1719987045886,-151.0,0.00021831,2]
[330985398,1719987045898,-152.83186823,0.00021841,2]
[330985399,1719987045907,-153.70159585,0.00021852,2]
[330985400,1719987045916,-453.0,0.00021871,2]
[330985401,1719987045926,-153.61046686,0.00021879,2]
[330985402,1719987045935,-153.496,0.00021881,2]
[330985403,1719987045944,-194.87,0.00021888,2]
[330985404,1719987045954,-800.0,0.0002189,2]
[330985405,1719987045964,-6279.51081998,0.00021893,2]
[330985406,1719987045973,-171.2311072,0.00021898,2]
[330985407,1719987045983,-774.73192,0.000219,2]
[330985408,1719987045992,-195.90221085,0.00021906,2]
[330985409,1719987046001,-194.87,0.00021907,2]
[330985410,1719987046011,-500.0,0.00021917,4]
[330985411,1719987046020,-500.0,0.00021917,4]
[330985412,1719987046028,-500.0,0.00021917,4]
[330985413,1719987046037,-500.0,0.00021917,4]
[330985414,1719987046046,-500.0,0.00021917,4]
[330985415,1719987046056,-500.0,0.00021917,4]
[330985416,1719987046064,-500.0,0.00021917,4]
[330985417,1719987046074,-500.0,0.00021917,4]
[330985418,1719987046083,-500.0,0.00021917,4]
[330985419,1719987046093,-500.0,0.00021917,4]
[330985420,1719987046102,-500.0,0.00021917,4]